bitfinex-derivatives/quotes_SOLF0:USTF0_20260304
["timestamp","ask_amount","ask_price","bid_price","bid_amount"]
[1772596101211,3.9080796,85.626,85.568,3.89649032]
[1772596102011,3.9080796,85.626,85.57,3.89649032]
[1772596103511,3.89141879,85.623,85.57,3.89649032]
[1772596103910,3.89141879,85.623,85.56,10.518]
[1772596104114,3.89141879,85.607,85.555,3.89649032]
[1772596104417,61.0,85.622,85.555,3.89649032]
[1772596104617,10.51,85.624,85.566,3.89649032]
[1772596104915,3.89548692,85.623,85.531,3.89649032]
[1772596105615,3.89548692,85.623,85.568,10.517]
[1772596106015,3.89548692,85.623,85.56,3.89649032]
[1772596106216,3.89548692,85.623,85.573,3.89649032]
[1772596106812,3.81577341,85.619,85.551,3.89649032]
[1772596107117,4.68310012,85.61,85.551,3.89649032]
[1772596107420,3.81577341,85.609,85.551,3.89649032]
[1772596107817,3.81577341,85.609,85.553,10.519]
[1772596108218,3.81577341,85.626,85.554,3.89649032]
[1772596109223,3.81577341,85.626,85.577,10.516]
[1772596111314,3.81577341,85.626,85.55,4.68310012]
[1772596111315,4.68310012,85.63,85.578,3.89649032]
[1772596111515,3.76142107,85.641,85.578,3.89649032]
[1772596111815,3.76142107,85.641,85.593,10.514]
[1772596112922,3.76142107,85.641,85.599,10.513]
[1772596113115,4.68310012,85.65,85.6,3.89649032]
[1772596113315,9.21680026,85.66,85.62,10.511]
[1772596113519,4.68310012,85.67,85.62,10.511]
[1772596114021,4.68310012,85.67,85.623,3.89649032]
[1772596114417,3.76064523,85.673,85.623,3.89649032]
[1772596114722,3.76064523,85.673,85.624,10.51]
[1772596114921,3.76064523,85.673,85.607,3.89649032]
[1772596115426,3.74750093,85.659,85.607,3.89649032]
[1772596117923,3.7968645,85.657,85.607,3.89649032]
[1772596118123,3.7968645,85.657,85.589,3.89649032]
[1772596118826,3.78270099,85.654,85.592,3.89649032]
[1772596119422,3.78270099,85.654,85.599,3.89649032]
[1772596120129,3.78270099,85.654,85.613,10.512]
[1772596120328,3.78270099,85.654,85.599,3.89649032]
[1772596120929,3.78270099,85.654,85.611,10.512]
[1772596121327,3.78270099,85.654,85.561,3.89649032]
[1772596122225,3.78270099,85.654,85.56,4.68310012]
[1772596122226,10.507,85.65,85.582,3.89649032]
[1772596122422,3.78328749,85.639,85.582,3.89649032]
[1772596122622,3.78328749,85.639,85.56,4.68310012]
[1772596122623,3.78328749,85.639,85.565,3.89649032]
[1772596124034,4.68310012,85.64,85.56,4.68310012]
[1772596124035,3.79145794,85.637,85.576,14.41249032]
[1772596125235,3.78944351,85.636,85.576,14.41249032]
[1772596125431,3.78944351,85.634,85.576,14.41249032]
[1772596125831,3.78944351,85.634,85.576,3.89649032]
[1772596126038,3.78944351,85.619,85.56,3.89649032]
[1772596126230,3.78944351,85.618,85.545,3.89649032]
[1772596126730,4.68310012,85.6,85.545,3.89649032]
[1772596127137,3.78944351,85.618,85.545,3.89649032]
[1772596127333,9.23676577,85.631,85.568,3.89649032]
[1772596127534,9.23676577,85.633,85.568,3.89649032]
[1772596127743,3.70394615,85.636,85.568,3.89649032]
[1772596127936,12.94071192,85.636,85.568,3.89649032]
[1772596128129,3.70394615,85.636,85.568,3.89649032]
[1772596128933,3.70394615,85.636,85.56,4.68310012]
[1772596128934,3.70394615,85.636,85.584,3.62213848]
[1772596129340,3.62234094,85.619,85.561,3.62213848]
[1772596129541,10.511,85.617,85.561,3.62213848]
[1772596130135,3.62234094,85.619,85.561,3.62213848]
[1772596131242,3.39656445,85.617,85.561,3.62213848]
[1772596132941,10.512,85.612,85.561,3.62213848]
[1772596133745,13.92508943,85.612,85.561,3.62213848]
[1772596133932,3.41308943,85.599,85.546,3.62213848]
[1772596135740,10.514,85.598,85.547,3.62213848]
[1772596135938,3.18141836,85.597,85.547,3.62213848]
[1772596136140,3.18141836,85.579,85.511,3.62213848]
[1772596136845,4.68310012,85.58,85.514,3.62213848]
[1772596137143,12.42555822,85.591,85.514,3.62213848]
[1772596137346,10.516,85.579,85.518,10.523]
[1772596137546,10.516,85.579,85.519,3.62213848]
[1772596138236,10.516,85.575,85.519,3.62213848]
[1772596140240,3.18879245,85.578,85.519,3.62213848]
[1772596140448,3.41282866,85.559,85.485,3.62213848]
[1772596140842,3.41282866,85.559,85.497,3.62213848]
[1772596141044,3.43536913,85.575,85.497,3.62213848]
[1772596141740,3.43536913,85.575,85.511,3.62213848]
[1772596142042,4.68310012,85.56,85.511,3.62213848]
[1772596142447,3.43536913,85.575,85.511,3.62213848]
[1772596143044,3.43536913,85.575,85.517,3.62213848]
[1772596144039,10.517,85.574,85.517,3.62213848]
[1772596144346,3.43536913,85.575,85.517,3.62213848]
[1772596144543,3.49312073,85.591,85.517,3.62213848]
[1772596144841,4.68310012,85.55,85.499,3.62213848]
[1772596145047,3.49312073,85.549,85.499,3.62213848]
[1772596145849,14.01312073,85.549,85.499,3.62213848]
[1772596148741,4.68310012,85.55,85.499,3.62213848]
[1772596149450,4.68310012,85.55,85.5,10.525]
[1772596150852,4.68310012,85.55,85.5,14.14713848]
[1772596151653,4.68310012,85.55,85.501,3.62213848]
[1772596151950,4.68310012,85.55,85.504,10.525]
[1772596152349,4.68310012,85.55,85.504,14.14713848]
[1772596152551,15.2051092,85.56,85.505,3.62213848]
[1772596153150,8.54373688,85.56,85.507,3.62213848]
[1772596154351,8.54373688,85.56,85.509,10.524]
[1772596154950,3.8541422,85.559,85.509,10.524]
[1772596155253,4.6871092,85.54,85.488,3.62213848]
[1772596155447,3.8541422,85.539,85.488,3.62213848]
[1772596156254,3.8541422,85.539,85.441,3.62213848]
[1772596156453,1.57584359,85.52,85.461,3.62213848]
[1772596157253,3.87161268,85.573,85.491,3.62213848]
[1772596157459,1.57584359,85.54,85.501,3.62213848]
[1772596157759,1.57584359,85.52,85.482,3.62213848]
[1772596159053,1.57584359,85.52,85.484,10.527]
[1772596160857,1.57584359,85.5,85.465,3.58135318]
[1772596161562,1.57584359,85.51,85.465,3.58135318]
[1772596161757,1.57584359,85.52,85.47,1.57584359]
[1772596161950,1.57584359,85.51,85.471,3.58135318]
[1772596162155,1.57584359,85.5,85.451,3.58135318]
[1772596163160,1.57584359,85.5,85.466,10.53]
[1772596163463,1.57584359,85.51,85.466,10.53]
[1772596163660,1.57584359,85.5,85.466,10.53]
[1772596163964,3.74666814,85.524,85.476,10.528]
[1772596164166,1.57584359,85.51,85.476,10.528]
[1772596164360,1.57584359,85.51,85.476,14.10935318]
[1772596165259,3.74666814,85.542,85.482,3.58135318]
[1772596165465,1.57584359,85.51,85.482,3.58135318]
[1772596165662,10.52229984,85.562,85.414,11.72180468]
[1772596165663,1.57584359,85.5,85.461,3.58135318]
[1772596165968,1.57584359,85.49,85.441,3.58135318]
[1772596166461,3.74666814,85.509,85.441,3.58135318]
[1772596166666,3.74666814,85.508,85.447,10.532]
[1772596167767,3.74666814,85.526,85.459,3.58135318]
[1772596169367,3.74666814,85.526,85.472,10.529]
[1772596170170,3.74666814,85.524,85.472,10.529]
[1772596171369,4.69245867,85.51,85.461,10.53]
[1772596172269,4.69245867,85.51,85.461,14.11135318]
[1772596172469,4.69245867,85.51,85.467,10.529]
[1772596172868,4.69245867,85.51,85.468,3.58135318]
[1772596173066,4.69245867,85.51,85.473,10.529]
[1772596173263,4.69245867,85.51,85.473,14.11035318]
[1772596173468,3.74666814,85.522,85.473,14.11035318]
[1772596173665,4.69245867,85.53,85.411,33.03518417]
[1772596173666,61.0,85.529,85.477,3.58135318]
[1772596173970,61.0,85.53,85.477,3.58135318]
[1772596176072,3.74666814,85.528,85.463,3.58135318]
[1772596177772,3.74666814,85.528,85.474,3.58135318]
[1772596178972,3.74666814,85.528,85.45,4.69245867]
[1772596178973,9.19118391,85.537,85.488,3.58135318]
[1772596179472,3.74666814,85.544,85.488,3.58135318]
[1772596179866,3.74666814,85.544,85.496,3.58135318]
[1772596180070,4.69245867,85.55,85.496,3.58135318]
[1772596180664,3.74666814,85.549,85.496,3.58135318]
[1772596180864,3.74666814,85.547,85.496,3.58135318]
[1772596181062,3.74666814,85.545,85.496,3.58135318]
[1772596181263,3.74666814,85.544,85.496,3.58135318]
[1772596181872,3.74666814,85.544,85.496,14.10735318]
[1772596182074,9.19118391,85.547,85.497,3.58135318]
[1772596182275,4.69245867,85.55,85.497,3.58135318]
[1772596183277,4.69245867,85.55,85.505,10.525]
[1772596184577,0.00018391,85.554,85.506,3.58135318]
[1772596184766,3.74666814,85.564,85.506,3.58135318]
[1772596185268,3.74666814,85.564,85.518,3.58135318]
[1772596186774,3.74666814,85.564,85.49,4.69245867]
[1772596186775,3.74666814,85.564,85.503,3.58135318]
[1772596186968,3.74666814,85.559,85.503,3.58135318]
[1772596188180,3.74666814,85.559,85.51,10.524]
[1772596190277,3.74666814,85.559,85.503,3.58135318]
[1772596190482,3.82288886,85.557,85.503,3.58135318]
[1772596191780,3.82288886,85.553,85.5,10.525]
[1772596192380,10.519,85.552,85.489,10.527]
[1772596192682,3.82288886,85.539,85.471,3.69417091]
[1772596194380,3.82288886,85.538,85.471,3.69417091]
[1772596194785,4.69245867,85.54,85.471,3.69417091]
[1772596195086,4.69245867,85.56,85.502,3.69417091]
[1772596195388,3.82288886,85.558,85.502,3.69417091]
[1772596195679,3.82288886,85.558,85.498,10.526]
[1772596195880,3.82288886,85.539,85.485,3.69417091]
[1772596196080,3.82288886,85.539,85.467,3.69417091]
[1772596196275,3.82288886,85.519,85.467,3.69417091]
[1772596196680,3.82288886,85.519,85.44,4.69245867]
[1772596196681,3.82288886,85.516,85.456,10.531]
[1772596197783,3.82288886,85.512,85.447,3.69417091]
[1772596198786,3.82288886,85.512,85.452,3.69417091]
[1772596199083,4.69245867,85.52,85.457,3.69417091]
[1772596199789,4.69245867,85.52,85.465,3.69417091]
[1772596200480,8.51534753,85.52,85.465,3.69417091]
[1772596200689,3.82288886,85.519,85.465,3.69417091]
[1772596201283,3.82288886,85.499,85.446,3.69417091]
[1772596201480,4.69245867,85.46,85.411,3.69417091]
[1772596202484,4.69245867,85.48,85.413,3.69417091]
[1772596202683,8.51534753,85.48,85.413,3.69417091]
[1772596203083,3.82288886,85.479,85.413,3.69417091]
[1772596203589,3.82288886,85.479,85.424,10.535]
[1772596204083,3.82288886,85.479,85.413,3.69417091]
[1772596205388,3.82288886,85.479,85.413,14.23017091]
[1772596205584,3.82288886,85.479,85.414,3.69417091]
[1772596206489,1.57825947,85.45,85.408,3.69417091]
[1772596206787,1.57825947,85.45,85.348,197.64178948]
[1772596206788,1.57825947,85.46,85.411,3.69417091]
[1772596206980,0.00025947,85.46,85.421,3.69417091]
[1772596209284,0.00025947,85.46,85.422,10.535]
[1772596209589,1.57825947,85.47,85.423,3.69417091]
[1772596209982,1.57825947,85.54,85.46,1.57825947]
[1772596210182,37.51095543,85.54,85.48,1.57825947]
[1772596210384,1.57825947,85.52,85.47,1.57825947]
[1772596210684,1.57825947,85.53,85.492,10.526]
[1772596211285,1.57825947,85.52,85.492,10.526]
[1772596211887,0.00025947,85.52,85.502,10.525]
[1772596212085,37.51051238,85.558,85.51,1.57825947]
[1772596212392,37.51051238,85.558,85.513,10.524]
[1772596212590,37.51051238,85.558,85.433,163.865]
[1772596212883,37.51051238,85.558,85.4,4.68662733]
[1772596212884,37.51051238,85.558,85.484,10.527]
[1772596213087,37.46170882,85.554,85.46,4.68662733]
[1772596213281,37.46170882,85.554,85.48,4.68662733]
[1772596213482,37.46170882,85.554,85.45,4.68662733]
[1772596213483,37.46170882,85.554,85.5,4.68662733]
[1772596213880,37.46170882,85.554,85.516,10.524]
[1772596214391,37.46170882,85.554,85.5,4.68662733]
[1772596214988,37.46170882,85.554,85.518,10.523]
[1772596216088,37.47204911,85.579,85.518,10.523]
[1772596216283,37.47204911,85.579,85.528,10.522]
[1772596216490,37.47204911,85.579,85.52,4.68662733]
[1772596216683,37.47204911,85.599,85.52,4.68662733]
[1772596218188,37.47204911,85.599,85.527,10.522]
[1772596218384,37.47439772,85.579,85.47,163.794]
[1772596218586,37.47439772,85.579,85.45,25.75062733]
[1772596218587,37.47439772,85.579,85.49,4.68662733]
[1772596218786,37.47439772,85.579,85.514,10.524]
[1772596219295,37.47439772,85.579,85.51,4.68662733]
[1772596219694,37.47439772,85.579,85.526,10.522]
[1772596220396,37.47439772,85.579,85.49,4.68662733]
[1772596220691,37.48268575,85.569,85.49,4.68662733]
[1772596221091,37.49920975,85.567,85.49,15.21362733]
[1772596221297,37.49920975,85.567,85.49,4.68662733]
[1772596222295,37.49920975,85.559,85.485,10.527]
[1772596223096,37.52504851,85.557,85.485,10.527]
[1772596224097,37.52504851,85.555,85.495,10.526]
[1772596224303,37.52504851,85.555,85.49,4.68662733]
[1772596225301,37.52504851,85.555,85.509,10.524]
[1772596225909,37.52504851,85.555,85.498,10.526]
[1772596226110,37.52504851,85.555,85.49,4.68662733]
[1772596226310,11.68,85.619,85.45,25.75062733]
[1772596226311,37.53466207,85.579,85.529,10.522]
[1772596227908,37.53466207,85.579,85.542,10.52]
[1772596228108,37.50055042,85.596,85.542,10.52]
[1772596228411,37.50055042,85.596,85.553,10.519]
[1772596228906,37.50055042,85.596,85.53,4.68662733]
[1772596229108,37.50055042,85.596,85.551,10.519]
[1772596229309,37.50055042,85.596,85.53,4.68662733]
[1772596229607,4.68662733,85.64,85.55,4.68662733]
[1772596229907,4.68662733,85.6,85.51,4.68662733]
[1772596231311,4.68662733,85.6,85.538,10.521]
[1772596231612,28.17694126,85.599,85.538,10.521]
[1772596234014,28.17694126,85.599,85.551,10.519]
[1772596234415,28.17694126,85.599,85.53,4.68662733]
[1772596234809,28.17694126,85.599,85.56,10.518]
[1772596236012,28.20452396,85.615,85.571,10.517]
[1772596236209,28.20452396,85.643,85.57,4.68662733]
[1772596237211,28.20220644,85.63,85.57,10.517]
[1772596238112,28.20220644,85.63,85.58,10.516]
[1772596239016,28.20220644,85.63,85.55,4.68662733]
[1772596240219,28.20220644,85.63,85.581,10.515]
[1772596240714,28.20220644,85.63,85.55,4.68662733]
[1772596240715,28.20855559,85.619,85.545,10.52]
[1772596241117,28.20855559,85.619,85.52,4.68662733]
[1772596241616,28.208478,85.599,85.533,10.521]
[1772596242816,283.20136602,85.644,85.45,4.68662733]
[1772596242817,28.20971232,85.579,85.5,4.68662733]
[1772596243522,28.20971232,85.565,85.502,10.525]
[1772596245122,28.20971232,85.565,85.5,4.68662733]
[1772596245923,28.20971232,85.565,85.519,10.523]
[1772596249021,28.20971232,85.565,85.509,10.524]
[1772596252627,28.20971232,85.565,85.5,4.68662733]
[1772596252628,28.20971232,85.565,85.531,10.522]
[1772596253525,28.20971232,85.565,85.518,10.523]
[1772596254924,28.20971232,85.565,85.527,10.522]
[1772596255431,28.20971232,85.565,85.517,10.523]
[1772596256329,28.20971232,85.565,85.506,10.525]
[1772596256726,28.19087199,85.563,85.506,10.525]
[1772596256930,4.68662733,85.58,85.506,10.525]
[1772596256931,28.19899758,85.561,85.506,10.525]
[1772596257934,28.19899758,85.559,85.506,10.525]
[1772596258134,28.19899758,85.557,85.506,10.525]
[1772596258331,28.19899758,85.554,85.495,10.526]
[1772596258536,28.19899758,85.552,85.495,10.526]
[1772596258731,28.19899758,85.55,85.495,10.526]
[1772596258930,4.68662733,85.54,85.46,4.68662733]
[1772596259134,28.19822034,85.539,85.46,4.68662733]
[1772596259341,28.19822034,85.537,85.44,4.68662733]
[1772596259534,28.19822034,85.519,85.452,10.531]
[1772596259932,28.19822034,85.519,85.44,4.68662733]
[1772596259933,28.19822034,85.517,85.44,4.68662733]
[1772596260240,28.19822034,85.503,85.441,10.533]
[1772596260534,28.19822034,85.503,85.44,4.68662733]
[1772596261429,28.20164185,85.52,85.44,4.68662733]
[1772596261629,28.20164185,85.52,85.46,4.68662733]
[1772596261831,10.519,85.556,85.46,4.68662733]
[1772596262036,28.20164185,85.549,85.48,4.68662733]
[1772596262231,28.20164185,85.548,85.48,4.68662733]
[1772596262436,28.20164185,85.548,85.507,10.525]
[1772596263033,21.03829984,85.578,85.5,4.68662733]
[1772596263034,28.17504556,85.567,85.517,10.523]
[1772596263536,28.17504556,85.567,85.506,10.525]
[1772596263731,28.17504556,85.564,85.452,163.828]
[1772596263931,28.17504556,85.562,85.49,4.68662733]
[1772596264138,28.17504556,85.56,85.502,10.525]
[1772596264338,28.17504556,85.558,85.49,4.68662733]
[1772596264930,28.18806982,85.556,85.47,4.68662733]
[1772596265134,28.18806982,85.554,85.47,4.68662733]
[1772596265840,28.18806982,85.552,85.47,4.68662733]
[1772596266336,28.18806982,85.55,85.489,10.527]
[1772596268339,28.18806982,85.55,85.478,10.528]
[1772596268529,28.18806982,85.55,85.47,4.68662733]
[1772596268731,28.12607451,85.548,85.47,4.68662733]
[1772596268931,28.12020667,85.546,85.47,4.68662733]
[1772596269132,28.12020667,85.543,85.477,10.528]
[1772596269337,28.12020667,85.541,85.477,10.528]
[1772596269538,28.12020667,85.541,85.47,4.68662733]
[1772596270542,28.12020667,85.541,85.486,10.527]
[1772596270741,28.12020667,85.541,85.47,4.68662733]
[1772596272044,28.12020667,85.541,85.485,10.527]
[1772596272240,28.12020667,85.541,85.47,4.68662733]
[1772596272742,28.12020667,85.541,85.485,10.527]
[1772596273042,28.12020667,85.541,85.47,4.68662733]
[1772596273043,28.12020667,85.541,85.45,4.68662733]
[1772596273635,28.12106721,85.537,85.47,4.68662733]
[1772596274141,28.12106721,85.537,85.49,4.68662733]
[1772596274645,28.12106721,85.569,85.521,10.523]
[1772596279644,28.12106721,85.569,85.529,10.522]
[1772596279953,4.68585512,85.61,85.53,4.68585512]
[1772596279954,28.11081394,85.585,85.53,4.68585512]
[1772596280354,28.11081394,85.585,85.548,10.52]
[1772596281749,28.10488302,85.627,85.548,10.52]
[1772596281955,28.10488302,85.613,85.558,10.518]
[1772596282156,28.10488302,85.611,85.558,10.518]
[1772596282959,28.11327586,85.609,85.53,4.68585512]
[1772596283159,28.11327586,85.607,85.53,4.68585512]
[1772596283359,28.11327586,85.603,85.53,4.68585512]
[1772596283556,28.11327586,85.601,85.535,10.521]
[1772596283859,28.11327586,85.599,85.535,10.521]
[1772596284156,28.11327586,85.597,85.545,10.52]
[1772596285061,10.52229984,85.624,85.53,4.68585512]
[1772596285062,28.11487681,85.621,85.555,10.519]
[1772596285258,28.11487681,85.621,85.53,4.68585512]
[1772596285259,28.11487681,85.619,85.55,4.68585512]
[1772596286260,28.11487681,85.619,85.564,10.518]
[1772596287057,28.11487681,85.619,85.573,10.516]
[1772596288960,28.11487681,85.619,85.54,4.68585512]
[1772596289863,28.10720223,85.607,85.54,15.20585512]
[1772596290570,28.10720223,85.605,85.54,15.20585512]
[1772596290869,28.10720223,85.605,85.55,10.519]
[1772596291371,28.10119019,85.604,85.54,10.52]
[1772596292066,28.10119019,85.597,85.53,10.522]
[1772596292369,28.10119019,85.597,85.52,4.68585512]
[1772596292869,28.11053188,85.593,85.528,10.522]
[1772596294468,28.11053188,85.591,85.528,10.522]
[1772596295369,28.1105204,85.588,85.528,10.522]
[1772596295864,28.1105204,85.586,85.528,10.522]
[1772596296364,10.515,85.585,85.528,10.522]
[1772596296567,28.1105204,85.584,85.528,10.522]
[1772596296971,28.1105204,85.584,85.52,4.68585512]
[1772596299370,28.1105204,85.584,85.536,10.521]
[1772596300071,28.1105204,85.584,85.527,10.522]
[1772596300567,28.1105204,85.584,85.535,10.521]
[1772596301270,28.1105204,85.584,85.544,10.52]
[1772596301970,28.07228838,85.605,85.553,10.519]
[1772596302572,28.07228838,85.605,85.541,10.52]
[1772596302871,28.07669318,85.603,85.5,4.68585512]
[1772596303072,28.07669318,85.583,85.5,4.68585512]
[1772596304265,28.07669318,85.583,85.52,10.523]
[1772596304970,28.07813044,85.581,85.52,10.523]
[1772596305773,28.07813044,85.569,85.429,163.873]
[1772596305972,28.07813044,85.549,85.47,4.68585512]
[1772596306172,28.07813044,85.535,85.47,10.529]
[1772596306675,28.07813044,85.535,85.47,4.68585512]
[1772596308367,28.07813044,85.535,85.426,21.07]
[1772596308568,28.07813044,85.535,85.46,4.68585512]
[1772596309177,28.07813044,85.535,85.48,4.68585512]
[1772596311780,28.07813044,85.535,85.47,10.529]
[1772596312176,28.08968742,85.531,85.47,10.529]
[1772596312778,28.08968742,85.531,85.46,4.68585512]
[1772596313477,28.08968742,85.531,85.472,10.529]
[1772596314281,28.09004873,85.549,85.494,10.526]
[1772596315775,28.09004873,85.549,85.484,10.527]
[1772596317978,28.1080128,85.547,85.484,10.527]
[1772596319085,28.10727458,85.545,85.484,10.527]
[1772596319281,28.10727458,85.543,85.484,10.527]
[1772596319478,28.10727458,85.543,85.493,10.526]
[1772596319887,28.10727458,85.543,85.47,4.68585512]
[1772596320083,28.10727458,85.543,85.503,10.525]
[1772596320682,28.10727458,85.559,85.512,10.524]
[1772596321887,28.10727458,85.559,85.502,10.525]
[1772596322088,28.10727458,85.559,85.47,4.68585512]
[1772596322393,28.10990404,85.557,85.47,4.68585512]
[1772596322580,28.10990404,85.555,85.47,4.68585512]
[1772596323183,28.11761335,85.578,85.51,4.68585512]
[1772596323781,28.11761335,85.575,85.51,10.524]
[1772596323986,28.11761335,85.573,85.5,4.68585512]
[1772596324286,4.68585512,85.58,85.48,4.68585512]
[1772596324287,28.11761335,85.563,85.48,4.68585512]
[1772596324493,28.11761335,85.561,85.48,4.68585512]
[1772596324787,28.11520837,85.559,85.48,4.68585512]
[1772596325185,28.11520837,85.554,85.48,4.68585512]
[1772596325387,28.11520837,85.554,85.5,4.68585512]
[1772596325886,28.11520837,85.579,85.531,10.522]
[1772596326494,28.11520837,85.579,85.521,10.523]
[1772596326695,28.11520837,85.579,85.52,4.68585512]
[1772596327392,28.11520837,85.579,85.533,10.521]
[1772596328892,28.11520837,85.579,85.544,10.52]
[1772596329887,28.11719344,85.613,85.544,10.52]
[1772596330089,28.11719344,85.611,85.544,10.52]
[1772596330294,28.11719344,85.598,85.5,4.68585512]
[1772596330593,28.11719344,85.596,85.5,4.68585512]
[1772596330895,28.12045228,85.591,85.523,10.523]
[1772596331095,28.12045228,85.589,85.523,10.523]
[1772596331296,28.12045228,85.587,85.523,10.523]
[1772596331500,28.12045228,85.582,85.512,10.524]
[1772596331799,28.12045228,85.579,85.512,10.524]
[1772596331997,9.16736832,85.578,85.512,10.524]
[1772596332196,28.12045228,85.577,85.512,10.524]
[1772596332396,28.12045228,85.577,85.522,10.523]
[1772596333187,28.12770702,85.575,85.522,10.523]
[1772596333794,28.12770702,85.575,85.531,10.522]
[1772596334690,28.12074851,85.599,85.501,21.051]
[1772596334892,28.12074851,85.598,85.53,4.68585512]
[1772596335299,28.12074851,85.598,85.558,10.518]
[1772596335997,28.12074851,85.635,85.57,4.68585512]
[1772596336196,28.12074851,85.652,85.57,4.68585512]
[1772596336598,28.12074851,85.65,85.59,10.514]
[1772596336789,28.12074851,85.65,85.57,4.67670455]
[1772596336790,28.11587848,85.648,85.57,4.67670455]
[1772596337095,28.11587848,85.646,85.57,4.67670455]
[1772596337298,28.11587848,85.644,85.579,10.516]
[1772596337500,28.11587848,85.644,85.57,4.67670455]
[1772596337692,28.11587848,85.644,85.59,4.67670455]
[1772596337896,28.11587848,85.644,85.605,10.512]
[1772596339299,28.11587848,85.644,85.594,10.514]
[1772596339895,28.11587848,85.644,85.583,10.515]
[1772596340697,28.11587848,85.644,85.593,10.514]
[1772596341903,28.11587848,85.644,85.582,10.515]
[1772596342205,2.03259749,85.688,85.57,4.67670455]
[1772596342206,28.17050597,85.639,85.57,4.67670455]
[1772596342398,28.17050597,85.639,85.55,4.67670455]
[1772596342605,28.17050597,85.634,85.55,4.67670455]
[1772596343402,28.17050597,85.634,85.57,10.517]
[1772596343603,28.17270492,85.631,85.57,10.517]
[1772596343802,28.17270492,85.631,85.55,4.67670455]
[1772596345107,28.17138647,85.618,85.55,4.67670455]
[1772596345305,28.17138647,85.618,85.53,4.67670455]
[1772596345806,28.17138647,85.615,85.548,10.52]
[1772596347198,10.512,85.613,85.548,10.52]
[1772596347403,28.21472016,85.599,85.537,10.521]
[1772596347806,28.21472016,85.599,85.53,4.67670455]
[1772596348107,28.21472016,85.599,85.538,10.521]
[1772596348409,28.21472016,85.599,85.548,10.52]
[1772596348605,28.21472016,85.599,85.51,4.67670455]
[1772596349502,28.20975202,85.596,85.51,4.67670455]
[1772596349700,28.20975202,85.596,85.5,4.67670455]
[1772596349701,28.20975202,85.596,85.536,10.521]
[1772596349905,28.20975202,85.596,85.52,4.67670455]
[1772596350299,28.20975202,85.596,85.537,10.521]
[1772596351505,28.20525128,85.594,85.5,4.67670455]
[1772596351912,28.20525128,85.594,85.53,4.67670455]
[1772596352507,4.67670455,85.62,85.53,4.67670455]
[1772596352810,28.20525128,85.619,85.53,4.67670455]
[1772596353809,28.20525128,85.619,85.553,10.519]
[1772596354204,28.20525128,85.619,85.55,4.67670455]
[1772596354908,28.21189334,85.67,85.59,4.67670455]
[1772596355112,294.06709549,85.689,85.6,4.67670455]
[1772596355113,28.21189334,85.668,85.6,4.67670455]
[1772596355711,28.21189334,85.666,85.601,10.513]
[1772596356511,28.21189334,85.662,85.589,10.515]
[1772596357610,28.19318297,85.66,85.589,10.515]
[1772596358315,28.19318297,85.649,85.589,10.515]
[1772596358712,2.0325322,85.688,85.611,10.512]
[1772596358904,2.0325322,85.688,85.59,4.67670455]
[1772596358905,28.21770322,85.687,85.59,4.67670455]
[1772596359110,28.21770322,85.687,85.61,4.67670455]
[1772596359616,28.21770322,85.687,85.63,10.51]
[1772596359809,28.21770322,85.687,85.61,4.67670455]
[1772596360306,28.21770322,85.686,85.619,10.511]
[1772596360509,28.21770322,85.684,85.619,10.511]
[1772596361213,28.22371545,85.682,85.619,10.511]
[1772596361710,28.22371545,85.682,85.632,10.509]
[1772596361911,28.22371545,85.682,85.61,4.67670455]
[1772596362115,28.22371545,85.669,85.59,4.67670455]
[1772596363011,28.22641197,85.666,85.59,4.67670455]
[1772596363411,28.22641197,85.666,85.609,10.512]
[1772596364416,28.22641197,85.664,85.598,10.513]
[1772596365314,28.2565281,85.662,85.598,10.513]
[1772596366009,28.2565281,85.662,85.59,4.67670455]
[1772596366611,28.2565281,85.688,85.62,10.511]
[1772596366914,28.2565281,85.688,85.55,4.67670455]
[1772596366915,28.25843704,85.686,85.59,4.67670455]
[1772596367113,28.25843704,85.679,85.59,4.67670455]
[1772596367314,28.25843704,85.677,85.59,4.67670455]
[1772596367512,28.25843704,85.667,85.59,4.67670455]
[1772596368716,28.25843704,85.665,85.607,10.512]
[1772596370118,28.25309508,85.663,85.596,10.514]
[1772596370519,28.25309508,85.663,85.59,4.67670455]
[1772596370821,28.25309508,85.663,85.606,10.512]
[1772596371620,28.25309508,85.663,85.616,10.511]
[1772596372625,28.25309508,85.663,85.625,10.51]
[1772596376519,28.25309508,85.663,85.634,10.509]
[1772596376828,28.25309508,85.663,85.61,4.67670455]
[1772596377028,28.25309508,85.663,85.624,10.51]